Cogmind - Beta 9.2 @@@ ROGUE MODE // 2019.12.14 @ 20:46:43 Player: Exeight Result: Destroyed by Y-54 Guardian with Gatling Laser Performance ------------- Evolutions (3) 1500 Regions Visited (7) 1400 Robots Destroyed (97) 485 Value Destroyed (2797) 2797 Prototype IDs (35) 700 Alien Tech Used (0) 0 Bonus (508) 508 TOTAL SCORE: 7390 Bonus ------- High Alert Combat Kills 122 Follower Combat Kills 110 Aligned with FarCom 300 Friendly Fire -24 Cogmind --------- Core Integrity 0/700 Matter 261/300 Energy 150/150 System Corruption 8% Temperature Cool (18) Movement Flying (99) Ox1 Location -7/Storage Parts ------- > --- POWER (1) -------- Micro Nuclear Core > --- PROPULSION (4) --- Improved VTOL Module Improved VTOL Module Improved VTOL Module > --- UTILITY (5) ------ Large Storage Unit Light Regenerative Plating > --- WEAPON (3) ------- Remote Datajack > --- INVENTORY (10) --- Improved Deuterium Engine Improved Deuterium Engine Carbon-fiber Leg Drone Bay (2/2) Improved EM Pulse Cannon Mini Assault Cannon Signal Generator Peak State ------------ > --- POWER ------------ Light Nuclear Core > --- PROPULSION ------- Carbon-fiber Leg Carbon-fiber Leg Carbon-fiber Leg > --- UTILITY ---------- Large Storage Unit High-capacity Storage Unit Improved Light Armor Plating Hacking Suite > --- WEAPON ----------- AWS/Autocannon > --- INVENTORY -------- Ion Engine Ion Engine Ion Engine Light Deuterium Engine Aluminum Leg Medium Storage Unit Large Storage Unit Improved Terrain Scan Processor Improved Medium Laser Improved EM Pulse Cannon Improved EM Pulse Cannon Enhanced Autogun Advanced Assault Cannon Advanced Assault Cannon Advanced Assault Cannon Improved Grenade Launcher Katana Signal Generator [Rating: 55] Favorites ----------- Power Light Nuclear Core Engine Improved Deuterium Engine Power Core Light Nuclear Core Propulsion Aluminum Leg Treads Light Treads Leg Aluminum Leg Hover Unit Gravmag System Flight Unit Improved VTOL Module Utility Large Storage Unit Device Improved Shield Generator Storage Large Storage Unit Processor Improved Terrain Scan Processor Hackware Hacking Suite Protection Improved Light Armor Plating Weapon EM Pulse Gun Energy Gun EM Pulse Gun Energy Cannon Improved EM Pulse Cannon Ballistic Gun Enhanced Autogun Ballistic Cannon Advanced Assault Cannon Launcher Rocket Launcher Special Weapon Remote Datajack Impact Weapon Heavy Mace Slashing Weapon Katana Special Melee Weapon Datajack Build | -11 -10 -10 -10 -9 -8 -7 -7 ------- Run | Scr Mat Min Exi Min Mat Fac Sto Slots Evolved 6 | . . . . . 4 2 . Power . | . . . . . . . . Propulsion 2 | . . . . . 1 1 . Utility 3 | . . . . . 2 1 . Weapon 1 | . . . . . 1 . . Parts Attached 88 | 4 8 4 . 7 34 16 15 Power 10 | 1 . 1 . 1 2 3 2 Engine 5 | 1 . . . . 1 3 . Core 5 | . . 1 . 1 1 . 2 Reactor . | . . . . . . . . Propulsion 20 | . 2 1 . 2 5 6 4 Treads 1 | . . . . . . 1 . Leg 11 | . 2 1 . 2 5 1 . Wheel . | . . . . . . . . Hover 4 | . . . . . . 4 . Flight 4 | . . . . . . . 4 Utility 18 | 1 3 . . . 6 4 4 Device 6 | . . . . . 1 2 3 Storage 6 | 1 3 . . . 2 . . Processor 3 | . . . . . 1 2 . Hackware 1 | . . . . . 1 . . Protection 2 | . . . . . 1 . 1 Artifact . | . . . . . . . . Weapon 40 | 2 3 2 . 4 21 3 5 Energy Gun 10 | 2 2 1 . 3 2 . . Energy Cannon 4 | . . . . . 3 . 1 Ballistic Gun 2 | . . . . . 2 . . Ballistic Cannon 13 | . . . . . 11 . 2 Launcher 3 | . 1 1 . 1 . . . Special Weapon 3 | . . . . . 1 1 1 Impact Weapon 1 | . . . . . . . 1 Slashing Weapon 3 | . . . . . 2 1 . Piercing Weapon . | . . . . . . . . Special Melee Weapon 1 | . . . . . . 1 . Unidentified Prototypes 7 | . . . . . 3 1 3 Parts Lost 29 | . . 3 . 5 6 11 4 Power 5 | . . 1 . 1 1 1 1 Propulsion 13 | . . 1 . 2 4 5 1 Utility 2 | . . . . . . 1 1 Weapon 9 | . . 1 . 2 1 4 1 Highest Loss Streak 6 | . . 2 . 3 3 6 2 Average Slot Usage (%) 87 | . 92 97 100 94 85 83 63 Engine 5 | . 14 1 . . 3 6 4 Core 4 | . . 12 14 11 4 . 1 Leg 22 | . 25 25 28 26 24 20 . Hover 1 | . . . . . . 5 . Device 2 | . . . . . . 4 15 Storage 22 | . 24 28 28 28 23 20 7 Hackware 5 | . . . . . 8 7 6 Energy Gun 8 | . 27 18 14 19 . 1 . Ballistic Cannon 4 | . . . . . 12 2 2 Launcher 2 | . . 9 14 6 . . . Slashing Weapon 3 | . . . . . 3 6 6 Naked Turns . | . . . . . . . . Heaviest Build 116 | 10 56 59 59 59 116 85 45 Greatest Support 52 | 3 20 20 20 25 45 52 24 Greatest Overweight (x) 9 | 3 3 5 2 5 5 9 7 Average Overweight (x) 1 | 1 1 2 2 2 2 1 1 Largest Inventory Capacity 24 | 6 18 18 18 18 24 24 10 Average Capacity 18 | 5 14 18 18 18 21 21 10 Most Carried 24 | 4 16 18 18 18 24 24 10 Average Carried 16 | 3 11 15 17 16 17 20 8 Final Capacity 24 | 6 18 18 18 18 24 10 10 Final Carried 18 | 4 15 17 18 16 18 7 7 Class Distribution -------------------- 44% | Mutant 35% | Hauler-Mutant 12% | Skirmisher 3% | Hauler-Skirmisher Dominant Class ---------------- Mutant | -10/Materials Mutant | -10/Mines Mutant | -10/Exiles Mutant | -9/Mines Hauler-Mutant | -8/Materials Hauler-Mutant | -7/Factory Mutant | -7/Storage Resources | -11 -10 -10 -10 -9 -8 -7 -7 ----------- Run | Scr Mat Min Exi Min Mat Fac Sto Matter Collected 1603 | 240 57 131 . 162 670 192 151 Remotely . | . . . . . . . . Salvage Created 3022 | . 634 186 . 150 1451 362 239 Parts 192 | . 38 19 . 25 82 16 12 Haulers Intercepted 6 | . 1 . . . 4 . 1 Recyclers Shooed 4 | . . . . . 1 2 1 Parts Field Recycled . | . . . . . . . . Retrieved Matter . | . . . . . . . . Parts Self-Destructed . | . . . . . . . . Prevented . | . . . . . . . . Kills | -11 -10 -10 -10 -9 -8 -7 -7 ------- Run | Scr Mat Min Exi Min Mat Fac Sto Combat Hostiles Destroyed 74 | . 12 7 . 8 37 7 3 Melee 21 | . . . . . 13 7 1 Guns 20 | . 12 4 . 4 . . . Cannons 25 | . . . . . 23 . 2 AOE 7 | . . 2 . 4 1 . . Classes Destroyed 14 | . 6 1 . 2 3 2 . Worker 4 | . 1 . . 1 2 . . Builder 1 | . . . . . 1 . . Tunneler 2 | . . . . 1 1 . . Hauler 6 | . 1 . . . 4 . 1 Recycler 3 | . 1 . . . 2 . . Mechanic 2 | . . 1 . . 1 . . Operator 1 | . 1 . . . . . . Watcher 4 | . . . . . 3 . 1 Swarmer 23 | . 3 3 . 6 11 . . Grunt 33 | . 9 4 . . 16 4 . Brawler 2 | . . . . . 2 . . Sentry 12 | . . . . 2 8 . 2 Hunter 1 | . . . . . . 1 . Programmer 3 | . . . . . . 2 1 Best Kill Streak 5 | . 4 2 . 5 5 2 5 Combat Bots Only 4 | . 3 2 . 4 4 2 3 Max Kills in Single Turn 2 | . 2 1 . 2 2 1 1 Gunslinging 1 | . . . . 1 . . . Exploded 2 | . . 1 . 2 1 . . Melee 1 | . . . . . 1 1 1 Uniques/NPCs Destroyed . | . . . . . . . . Combat | -11 -10 -10 -10 -9 -8 -7 -7 -------- Run | Scr Mat Min Exi Min Mat Fac Sto Damage Taken 4920 | . 278 229 . 436 1693 1201 1083 Core 1055 | . 52 35 . 88 169 185 526 Absorbed by Shields 109 | . . . . . . 109 . Core Remaining (%) 66 | 100 . . . 30 69 . . Volleys Fired 107 | . 32 20 . 16 20 12 7 Largest 3 | . 2 2 . 2 3 1 2 Hottest 186 | . 80 80 . 80 186 48 117 Shots Fired 290 | . 64 38 . 30 135 12 11 Gun 131 | . 64 30 . 24 4 9 . Cannon 142 | . . . . . 131 3 8 Launcher 14 | . . 8 . 6 . . . Special 3 | . . . . . . . 3 Kinetic 134 | . . . . . 127 3 4 Thermal 38 | . 11 . . 17 1 9 . Explosive 14 | . . 8 . 6 . . . Electromagnetic 101 | . 53 30 . 7 7 . 4 Robot Hit Streak 20 | . 20 7 . 7 19 5 10 Robot Miss Streak 4 | . 3 3 . 4 4 1 . Penetration Max . | . . . . . . . . Secondary Targets 3 | . 2 . . 1 . . . Max Gunslinging Chain 1 | . 1 . . 1 . . . Autonomous 79 | . . . . . 79 . . Shots Hit Robots 246 | . 44 16 . 14 123 32 17 Core Hits 126 | . 25 13 . 16 51 15 6 Critical Hits 7 | . . . . . 6 . 1 Critical Kills 2 | . . . . . 2 . . Critical Parts Destroyed 4 | . . . . . 3 . 1 Melee Attacks 80 | . . . . . 37 31 12 Impact . | . . . . . . . . Slashing 79 | . . . . . 37 30 12 Piercing . | . . . . . . . . Sneak Attacks 3 | . . . . . 3 . . Combat Hostiles . | . . . . . . . . Follow-up Attacks . | . . . . . . . . Damage Inflicted 9538 | . 515 395 . 528 6673 888 539 Guns 973 | . 514 208 . 139 48 64 . Cannons 5657 | . . . . . 5397 79 181 Explosions 765 | . . 172 . 381 165 . 47 Melee 2101 | . . . . . 1063 745 293 Ramming 42 | . 1 15 . 8 . . 18 Kinetic 5494 | . . . . . 5292 79 123 Thermal 301 | . 76 . . 98 16 64 47 Explosive 718 | . . 172 . 381 165 . . Electromagnetic 882 | . 438 208 . 41 137 . 58 Impact . | . . . . . . . . Slashing 2101 | . . . . . 1063 745 293 Piercing . | . . . . . . . . Highest Corruption 8 | . 3 3 3 3 5 5 8 Average Corruption 3 | . 2 3 3 3 5 2 5 Corruption Purged . | . . . . . . . . Effects 112 | . 5 20 6 9 35 18 19 Message Errors 32 | . 2 4 3 3 5 7 8 Matter Fused 27 | . 2 7 1 . 14 1 2 Heat Flow Errors 11 | . . 4 . 2 1 2 2 Energy Discharges 16 | . 1 3 1 1 5 4 1 Data Loss (minor) 12 | . . 2 1 2 3 2 2 Data Loss (major) 3 | . . . . . 2 . 1 Misfires 2 | . . . . . 2 . . Targeting Errors 9 | . . . . 1 3 2 3 Overload Shots . | . . . . . . . . Overflow Damage 1076 | . . . . 27 1026 23 . Projectiles 990 | . . . . . 990 . . Explosions 39 | . . . . 27 12 . . Melee 47 | . . . . . 24 23 . Knockbacks 31 | . . . . . 29 2 . Impact . | . . . . . . . . Kinetic 27 | . . . . . 25 2 . Secondary 4 | . . . . . 4 . . Self-Inflicted Damage 164 | . . 7 . 31 99 . 27 Shots 3 | . . . . 1 1 . 1 Rammed 4 | . 1 1 . 1 . . 1 Targets Rammed 4 | . 1 1 . 1 . . 1 Kicked . | . . . . . . . . Crushed . | . . . . . . . . Highest Temperature 408 | . 108 192 . 165 408 117 276 Average Temperature 75 | . 39 56 . 51 142 38 90 Received Heat Transfer 1395 | . 102 93 . 90 630 210 270 Effects 3 | . . . . . 3 . . Shutdowns 1 | . . . . . 1 . . Matter Decay 1 | . . . . . 1 . . Short Circuit 1 | . . . . . 1 . . Siege Activations . | . . . . . . . . Robots Corrupted 1 | . . 1 . . . . . Combat Hostiles 1 | . . 1 . . . . . Parts Fried 3 | . . 2 . . 1 . . Impact Corruptions . | . . . . . . . . Robots Melted . | . . . . . . . . Combat Hostiles . | . . . . . . . . Parts Melted . | . . . . . . . . Heat Transferred 796 | . 175 . . 225 37 259 100 Parts Sabotaged . | . . . . . . . . Parts Stolen . | . . . . . . . . Parts Stripped . | . . . . . . . . Power Chain Reactions 1 | . . . . . . . 1 Missiles Intercepted . | . . . . . . . . Alert | -11 -10 -10 -10 -9 -8 -7 -7 ------- Run | Scr Mat Min Exi Min Mat Fac Sto Peak Influence 678 | . 224 131 . 155 678 313 117 Average Influence 177 | . 62 58 . 67 357 111 15 Maximum Alert Level 2 | . 1 . . . 2 1 . Low Security (%) 70 | 100 99 100 . 100 33 79 100 Level 1 9 | . . . . . 13 20 . Level 2 19 | . . . . . 53 . . Level 3 . | . . . . . . . . Level 4 . | . . . . . . . . Level 5 . | . . . . . . . . High Security . | . . . . . . . . Max Security . | . . . . . . . . Squads Dispatched 15 | . 2 1 . . 3 5 4 Investigation 2 | . 1 . . . 1 . . Extermination 3 | . . . . . . 2 1 Reinforcement 7 | . 1 . . . 2 1 3 Assault 2 | . . 1 . . . 1 . Garrison 1 | . . . . . . 1 . Intercept . | . . . . . . . . Construction Impeded 1 | . . . . . 1 . . Haulers Reinforced . | . . . . . . . . Stealth | -11 -10 -10 -10 -9 -8 -7 -7 --------- Run | Scr Mat Min Exi Min Mat Fac Sto Distress Signals 10 | . . . . . 3 1 6 Communications Jammed . | . . . . . . . . Distress Signals . | . . . . . . . . Times Spotted 122 | . 19 13 . 8 53 20 9 Peak Tracking Total 6 | . 4 3 . 4 6 6 6 Tactical Retreats 13 | . 1 3 . . 9 . . Traps | -11 -10 -10 -10 -9 -8 -7 -7 ------- Run | Scr Mat Min Exi Min Mat Fac Sto Traps Triggered 5 | . 2 . . . 1 1 1 Indirectly . | . . . . . . . . Trap Hack Attempts . | . . . . . . . . Triggered . | . . . . . . . . Disarmed 6 | . . . . . . 6 . Reprogrammed 10 | . 4 . . . 6 . . Reused . | . . . . . . . . Traps Extracted . | . . . . . . . . Installed . | . . . . . . . . Triggered . | . . . . . . . . Machines | -11 -10 -10 -10 -9 -8 -7 -7 ---------- Run | Scr Mat Min Exi Min Mat Fac Sto Machines Disabled 9 | . . 1 . 2 5 . 1 Max in Single Turn 2 | . . . . 2 1 . 1 Garrison Access 1 | . . . . . . 1 . Machines Sabotaged . | . . . . . . . . Garrisons Compromised . | . . . . . . . . Overloaded Fab Kills . | . . . . . . . . Fab Network Shutdowns . | . . . . . . . . Hacking | -11 -10 -10 -10 -9 -8 -7 -7 --------- Run | Scr Mat Min Exi Min Mat Fac Sto Machines Accessed 25 | . 6 . 1 . 12 4 2 Terminals 17 | . 5 . . . 9 1 2 Fabricators 1 | . . . . . . 1 . Repair Stations 2 | . 1 . . . . 1 . Recycling Units 2 | . . . . . 1 1 . Scanalyzers 2 | . . . . . 2 . . Garrison Access . | . . . . . . . . Total Hacks 44 | . 11 . 1 . 19 10 3 Successful 34 | . 7 . 1 . 15 9 2 Failed 10 | . 4 . . . 4 1 1 Catastrophic 1 | . 1 . . . . . . Database Lockouts . | . . . . . . . . Manual 1 | . . . 1 . . . . Terminals 24 | . 6 . . . 13 2 3 Fabricators 3 | . . . . . . 3 . Repair Stations 9 | . 5 . . . . 4 . Recycling Units 2 | . . . . . 1 1 . Scanalyzers 5 | . . . . . 5 . . Garrison Access . | . . . . . . . . Terminal Hacks 18 | . 4 . 1 . 9 2 2 Prototype ID Bank 3 | . . . . . 3 . . Open Door 2 | . . . . . . . 2 Branch Access Points 2 | . 1 . . . 1 . . Disarm Traps 1 | . . . . . . 1 . Reprogram Traps 2 | . 1 . . . 1 . . Hauler Manifests 4 | . 1 . . . 2 1 . Registered Prototypes 1 | . 1 . . . . . . Zone Layout 2 | . . . . . 2 . . EX-Prototype ID Bank 1 | . . . 1 . . . . Fabricator Hacks 3 | . . . . . . 3 . Load Schematic 1 | . . . . . . 1 . Build 2 | . . . . . . 2 . Repair Station Hacks 6 | . 3 . . . . 3 . Scan Component 3 | . 2 . . . . 1 . Repair 2 | . 1 . . . . 1 . Refit 1 | . . . . . . 1 . Recycling Unit Hacks 2 | . . . . . 1 1 . Report Inventory 2 | . . . . . 1 1 . Scanalyzer 5 | . . . . . 5 . . Insert Component 3 | . . . . . 3 . . Analyze 2 | . . . . . 2 . . Garrison Access Hacks . | . . . . . . . . Unauthorized Hacks . | . . . . . . . . Terminals . | . . . . . . . . Fabricators . | . . . . . . . . Repair Stations . | . . . . . . . . Recycling Units . | . . . . . . . . Scanalyzers . | . . . . . . . . Garrison Access . | . . . . . . . . Data Cores Recovered 1 | . 1 . . . . . . Used . | . . . . . . . . Hacking Detections 10 | . 4 . . . 3 2 1 Full Trace Events 1 | . 1 . . . . . . Feedback Events . | . . . . . . . . Feedback Blocked . | . . . . . . . . Robot Schematics Acquired . | . . . . . . . . Robots Built . | . . . . . . . . Matter . | . . . . . . . . Time . | . . . . . . . . Total Robot Build Rating . | . . . . . . . . Part Schematics Acquired 2 | . . . . . 2 . . Parts Built 4 | . . . . . . 4 . Matter 292 | . . . . . . 292 . Time 146 | . . . . . . 146 . Total Part Build Rating 12 | . . . . . . 12 . Parts Repaired 2 | . 1 . . . . 1 . Time 74 | . 36 . . . . 38 . Parts Recycled . | . . . . . . . . Recycled Matter . | . . . . . . . . Retrieved Matter . | . . . . . . . . Retrieved Components . | . . . . . . . . Parts Scanalyzed 2 | . . . . . 2 . . Part Schematics Acquired 2 | . . . . . 2 . . Parts Damaged . | . . . . . . . . Bothacking | -11 -10 -10 -10 -9 -8 -7 -7 ------------ Run | Scr Mat Min Exi Min Mat Fac Sto Used RIF Installer . | . . . . . . . . Robots Hacked 2 | . . . . . . . 2 Non-combat 1 | . . . . . . . 1 Combat 1 | . . . . . . . 1 Robot Hacks Applied 2 | . . . . . . . 2 parse_system 1 | . . . . . . . 1 no_distress 1 | . . . . . . . 1 Relay Couplers Released . | . . . . . . . . Robots Rewired . | . . . . . . . . Allies Hacked . | . . . . . . . . Hacks Repelled . | . . . . . . . . Allies | -11 -10 -10 -10 -9 -8 -7 -7 -------- Run | Scr Mat Min Exi Min Mat Fac Sto Total Allies 1 | . . 1 . . . . . Largest Group 1 | . . 1 . . . . . Highest-Rated Group 31 | . . 31 . . . . . Highest-Rated Ally 31 | . . 31 . . . . . Total Orders 3 | . . . . . . . 3 ROAM 2 | . . . . . . . 2 EXPLORE 1 | . . . . . . . 1 Ally Attacks 14 | . . 14 . . . . . Total Damage 190 | . . 190 . . . . . Kills 4 | . . 4 . . . . . Allies Corrupted . | . . . . . . . . Allies Melted . | . . . . . . . . Intel | -11 -10 -10 -10 -9 -8 -7 -7 ------- Run | Scr Mat Min Exi Min Mat Fac Sto Robot Analysis Total . | . . . . . . . . Derelict Logs Recovered 2 | . . 2 . . . . . Drone Launches 6 | . . . . . . . 6 Drone Recoveries . | . . . . . . . . Exploration | -11 -10 -10 -10 -9 -8 -7 -7 ------------- Run | Scr Mat Min Exi Min Mat Fac Sto Turns Passed 9095 | 55 1373 1005 470 415 3161 1970 646 Spaces Moved 4032 | 40 701 462 261 182 1352 861 173 Core 99 | 40 53 . . . . 6 . Treads 163 | . . . . . . 64 99 Legs 3410 | . 648 462 261 182 1352 505 . Wheels . | . . . . . . . . Hover 286 | . . . . . . 286 . Flight 74 | . . . . . . . 74 Fastest Speed 26 | 50 120 180 180 180 150 48 26 Average Speed 165 | 108 156 191 180 181 182 134 136 Slowest Speed 525 | 200 200 270 180 270 280 500 525 Overloaded Moves . | . . . . . . . . Propulsion Burnouts . | . . . . . . . . Robots Hopped 3 | . . . . . . . 3 Cave-ins Triggered . | . . . . . . . . Exploration Rate (%) 52 | 3 90 84 62 37 91 15 39 Regions Visited 7 Branch Regions 4 Pre-discovered Areas 1 | . . 1 . . . . . Known Exits Taken 2 | . 1 . . . 1 . . Unknown Exits Taken 5 | 1 . 1 1 1 . 1 . Scrap Searched 1 | . . 1 . . . . . Spaces Dug . | . . . . . . . . Terrain Destroyed 192 | . . 46 . 64 79 . 3 Melee . | . . . . . . . . Projectile 35 | . . . . . 35 . . AOE 157 | . . 46 . 64 44 . 3 Actions | -11 -10 -10 -10 -9 -8 -7 -7 --------- Run | Scr Mat Min Exi Min Mat Fac Sto Total 6140 | 51 914 544 263 234 1959 1619 556 Wait 1664 | 3 143 53 . 26 444 666 329 Move 4019 | 39 700 461 260 181 1351 860 167 Hop 3 | . . . . . . . 3 Pick Up 108 | 5 22 5 1 3 41 19 12 Fast Attach 10 | 3 1 . . . 3 3 . Attach 51 | 1 4 3 . 5 17 7 14 Detach 10 | . . . . . 7 . 3 Swap 27 | . 3 1 . 2 14 6 1 Drop 55 | . 8 . 2 . 25 13 7 Fire 107 | . 32 20 . 16 20 12 7 Melee 80 | . . . . . 37 31 12 Ram 1 | . . . . . . . 1 Kick 3 | . 1 1 . 1 . . . Crush . | . . . . . . . . Escape Stasis 2 | . . . . . . 2 . Rewire . | . . . . . . . . Trap . | . . . . . . . . Miscellaneous . | . . . . . . . . Route ------- -11/Scrapyard -10/Materials (discovered 4 exits: [*Mat x3] / *Min) -10/Mines (discovered 3 exits: [*Mat x2] / *Exi) -10/Exiles -9/Mines -8/Materials (discovered 2 exits: *Fac x2) -7/Factory -7/Storage History --------- Turn | Location | Event 4 | -11/Scrapyard | Discovered new exit (range 15) 56 | -11/Scrapyard | Entered Materials 308 | -10/Materials | Build established: Mutant 602 | -10/Materials | Identified exit to Mines 714 | -10/Materials | Repaired EM Pulse Gun 1038 | -10/Materials | Discovered new exit (range 15) 1099 | -10/Materials | Discovered new exit (range 7) 1352 | -10/Materials | Discovered new exit (range 3) 1429 | -10/Materials | Entered Mines 1610 | -10/Mines | Discovered new exit (range 6) 1639 | -10/Mines | Met a Derelict testing a Signal Generator 1658 | -10/Mines | Found Signal Generator 1849 | -10/Mines | Discovered new exit (range 8) 1854 | -10/Mines | Received a Rocket Launcher from a helpful Derelict 2293 | -10/Mines | Learned location of 1 exit from Materials 2370 | -10/Mines | Learned location of Storage (-7) 2425 | -10/Mines | Deemed a non-threat by the Exiles lab entrance 2427 | -10/Mines | Discovered new exit (range 5) 2434 | -10/Mines | Entered Exiles 2478 | -10/Exiles | Met 8R-AWN 2510 | -10/Exiles | Met EX-HEX 2559 | -10/Exiles | Met EX-BIN 2582 | -10/Exiles | Aligned with FarCom system 2584 | -10/Exiles | Given EX-Vault access code 2627 | -10/Exiles | Opened EX-Vault 2643 | -10/Exiles | Found AWS/Autocannon 2685 | -10/Exiles | Warned to stay clear of 0b10 Research branches 2789 | -10/Exiles | Met EX-DEC 2886 | -10/Exiles | Discovered new exit (range 10) 2904 | -10/Exiles | Left Exiles lab with AWS/Autocannon 2904 | -10/Exiles | Entered Mines 3103 | -9/Mines | Core integrity fell below 50% 3128 | -9/Mines | Lost 3 parts (1n2w) 3176 | -9/Mines | Joined a pair of Derelicts in attacking an 0b10 outpost 3302 | -9/Mines | Discovered new exit (range 9) 3319 | -9/Mines | Entered Materials 3319 | -8/Materials | Evolved 4 slots: Propulsion x1, Utility x2, Weapon x1 3320 | -8/Materials | Identified exit to Factory 3624 | -8/Materials | Build established: Skirmisher 4018 | -8/Materials | Discovered exit to Factory (range 16) 5091 | -8/Materials | Lost 3 parts (1p2n) 5414 | -8/Materials | Build established: Hauler-Mutant 6480 | -8/Materials | Entered Factory 6480 | -7/Factory | Evolved 2 slots: Propulsion x1, Utility x1 6815 | -7/Factory | Fabricated Carbon-fiber Leg (x2) 6897 | -7/Factory | Fabricated Carbon-fiber Leg (x2) 7984 | -7/Factory | Repaired Katana 8184 | -7/Factory | Discovered new exit (range 12) 8294 | -7/Factory | Garrison activated, responded to threat 8341 | -7/Factory | Lost 6 parts (1p4n1w) 8422 | -7/Factory | Build established: Mutant 8450 | -7/Factory | Entered Storage 8999 | -7/Storage | Core integrity fell below 50% 9014 | -7/Storage | Core integrity fell below 20% 9070 | -7/Storage | Found Prototype Protection 9071 | -7/Storage | Identified Lgt. Regenerative Plating 9096 | -7/Storage | Destroyed by Y-54 Guardian with Gatling Laser Last Messages --------------- Identified Lgt. Regenerative Plating. Jacked K-01 Serf... >>no_distress Distress signal routine blocked. Triggered Proton Bomb Trap. A bubble of electromagnetic force engulfs the area. Imp. VTOL Module destroyed. Slammed into R-06 Scavenger. Hacking Suite destroyed. System corrupted by crushing effect (+1). R-06 Scavenger sends out distress signal. Jacked R-06 Scavenger... Drone destroyed. Jacked G-47 Trooper... >>parse_system Reading system data... U-05 Engineer builds a Door. K-01 Serf cleans the Component Storage. K-01 Serf cleans the Storage Shell. U-05 Engineer lays Concrete. Map ----- +----------------------------------------------------+ | ?????????????????????????????????????????????????? | | ?????????????????????????????????????????????????? | | ?????????????????????????????????????????????????? | | ?????????####+########???????????????????????????? | | ?"???????? #???????????????????????????? | | ?? /??????? +???????????????????????????? | | ???#/###????# """" #???????????????????????????? | | ???# ???# ""R" #???????????????????????????? | | ???#"" ??# "" " #??????????????????????????## | | ???#"" ?# #############??????????????#= | | ???#"" # #??????????????#= | | ???#T ]]] / h #??????????????#" | | ???#"" ]]] # #??????????????# | | ????"" ]] ??###%###########+######?????########### | | ?????" ??????# #?Y???# ######## | | ??????????????# #?????# """" # # | | ??????????????# #?????# "??? # """ # | | ??????????????# #?????# "???? # """ # ####### | | ?????????????? #?????# g"????? # """ # #?????? | | ?????????????? #?????# "??????# # g#?????? | | ?????????????? #?????# """"???# # #???### | | ?????????????? +?????# ????# # #???# | | ??????????????###?????###+##????# """ + #???# | | ??????????????????h?????# #?????# "R %# * #???# | | ?????????????????##/#####g####### """% #[% #???# | | ?????????? o u ggY @ o rrr a"" #= #???# | | ?????????????????##/########/#### =+! #???# | | ??????????????????????????# #?### #####+######## | | ??????????????????????????# #???#### !##?? | | ??????????????????????????#!! #??????# """ /##?? | | ??????????????????????????#!!!#??????# """"/%##?? | | ??????????????????????????#####??????# """ !!##?? | | ?????????????????????????????????????# ##?? | | ?????????????????????????????????????# """"" #??? | | ????????????????????????????????????# """"" #### | | ????????????????????????????????????## """"" + | | ?????????????????????????????????????# #### | | ?????????????????????????????????????##########??? | | ?????????????????????????????????????????????????? | | ?????????????????????????????????????????????????? | | ?????????????????????????????????????????????????? | | ?????????????????????????????????????????????????? | | ?????????????????????????????????????????????????? | | ?????????????????????????????????????????????????? | | ?????????????????????????????????????????????????? | | ?????????????????????????????????????????????????? | | ?????????????????????????????????????????????????? | | ?????????????????????????????????????????????????? | | ?????????????????????????????????????????????????? | | ?????????????????????????????????????????????????? | +----------------------------------------------------+ Best States ------------- Heat Dissipation 45 Energy Generation 16 Energy Capacity 290 Matter Stores 300 Matter Capacity 300 Sight Range 20 Terrain Scan Density 110 Armor Coverage 150 Weapon Cycling 15 Evasion (%) 64 Recoil Reduction 1 Offensive Hacking 10 Item Schematics ----------------- Carbon-fiber Leg | -8/Materials | Scanalyzed Imp. EM Pulse Cannon | -8/Materials | Scanalyzed Robot Schematics ------------------ None Fabricated ------------ Carbon-fiber Leg | x2 | -7/Factory Carbon-fiber Leg | x2 | -7/Factory Alien Tech Used ----------------- None Achievements -------------- Just What I Needed Challenges ------------ None Game ------ Seed BiometalNeutralizingShredder Manual? 0 Play Time 01:44:27 Cumulative 15.1 hours Start 2019.12.14 @ 18:33:38 End 2019.12.14 @ 20:46:43 Sessions 1 Manual Loads 0 Difficulty Rogue Special Mode None Game No. 20 Rogue 20 Adventurer 0 Explorer 0 Win Type - Total 0 Types 0/0/0/0/0/0/0 Lore% 7 Gallery% 16 Achievement% 13 Wizard Run 0 Options --------- ASCII 0 Keyboard 0 Movement Mouse Keybinds 0 Fullscreen 0 Font 32/SmallcapsGlow Map View 76x50 Tactical HUD 0 Map Filters NONE Filters NONE Steam 1 RUN: 55b024ac-fc26-4b5b-a4ae-160944472500